bitfinex-derivatives/quotes_BTCF0:USTF0_20251103
["timestamp","ask_amount","ask_price","bid_price","bid_amount"]
[1762163550538,0.05602,107180.0,107170.0,0.05732]
[1762163550746,0.0433,107180.0,107170.0,0.05732]
[1762163551653,0.0473,107180.0,107170.0,0.05732]
[1762163552648,0.004,107180.0,107170.0,0.05732]
[1762163552853,0.004,107180.0,107170.0,0.41812]
[1762163553148,0.02516,107180.0,107170.0,0.41812]
[1762163553452,0.0473,107180.0,107170.0,0.41812]
[1762163554253,0.0473,107180.0,107170.0,0.05732]
[1762163554552,0.06002,107180.0,107170.0,0.05732]
[1762163556053,0.004,107180.0,107170.0,0.41812]
[1762163556444,0.004,107180.0,107170.0,0.5114482]
[1762163556755,0.004,107180.0,107170.0,0.41812]
[1762163557854,0.02516,107180.0,107170.0,0.41812]
[1762163558056,0.0473,107180.0,107170.0,0.41812]
[1762163558849,0.06002,107180.0,107170.0,0.41812]
[1762163559057,0.0473,107180.0,107170.0,0.41812]
[1762163560752,0.02516,107180.0,107170.0,0.41812]
[1762163561054,0.0473,107180.0,107170.0,0.41812]
[1762163562160,0.06095,107180.0,107170.0,0.04382]
[1762163562561,0.0473,107180.0,107170.0,0.05729]
[1762163563056,0.0473,107180.0,107170.0,0.41809]
[1762163563555,0.02516,107180.0,107170.0,0.41809]
[1762163564555,0.004,107180.0,107170.0,0.5114184]
[1762163564951,0.004,107180.0,107170.0,0.5114182]
[1762163565147,0.38333,107200.0,107190.0,0.04341]
[1762163565457,0.04558,107200.0,107190.0,0.41768]
[1762163565760,0.48153665,107210.0,107200.0,0.05688]
[1762163566459,0.57352058,107210.0,107200.0,0.05688]
[1762163566652,0.05873,107200.0,107190.0,0.38248]
[1762163566958,0.15071393,107200.0,107190.0,0.38248]
[1762163567152,0.15071393,107200.0,107190.0,0.40421]
[1762163567355,0.15071393,107200.0,107190.0,0.41768]
[1762163568257,0.15471393,107200.0,107190.0,0.40421]
[1762163568558,0.17774329,107200.0,107190.0,0.04341]
[1762163568759,0.17774329,107200.0,107190.0,0.05688]
[1762163569661,0.16459329,107200.0,107190.0,0.05688]
[1762163569958,0.04958,107200.0,107190.0,0.05688]
[1762163570159,0.04958,107200.0,107190.0,0.41768]
[1762163571062,0.04758,107200.0,107190.0,0.41768]
[1762163573766,0.09758,107200.0,107190.0,0.41768]
[1762163574161,0.052,107200.0,107190.0,0.41768]
[1762163574761,0.07453,107200.0,107190.0,0.41768]
[1762163575658,0.07453,107200.0,107190.0,0.5109909]
[1762163575965,0.052,107200.0,107190.0,0.41768]
[1762163576466,0.07453,107200.0,107190.0,0.41768]
[1762163577067,0.09558,107200.0,107190.0,0.41768]
[1762163577562,0.07253,107200.0,107190.0,0.5109909]
[1762163577870,0.05,107200.0,107190.0,0.5109909]
[1762163578772,0.015,107200.0,107190.0,0.62600419]
[1762163578970,0.04558,107220.0,107210.0,0.04341]
[1762163579159,0.05923,107220.0,107210.0,0.40421]
[1762163580160,0.06935695,107220.0,107210.0,0.40421]
[1762163580562,0.07135695,107220.0,107210.0,0.40421]
[1762163580970,0.07135695,107220.0,107210.0,0.04341]
[1762163580971,0.54717024,107220.0,107210.0,0.04341]
[1762163581271,0.54717024,107220.0,107210.0,0.02168]
[1762163581469,0.05923,107210.0,107200.0,0.02168]
[1762163581669,0.53504329,107210.0,107200.0,0.04341]
[1762163581863,0.42003,107210.0,107200.0,0.04341]
[1762163582070,0.53504329,107210.0,107200.0,0.04341]
[1762163582279,0.17424329,107210.0,107200.0,0.04341]
[1762163582467,0.04558,107210.0,107200.0,0.40421]
[1762163582667,0.02253,107210.0,107200.0,0.40421]
[1762163582869,0.06935695,107220.0,107210.0,0.04341]
[1762163583176,0.06935695,107220.0,107210.0,0.41094]
[1762163583372,0.01365,107230.0,107220.0,0.05688]
[1762163583373,0.04558,107230.0,107220.0,0.05688]
[1762163583867,0.05558264,107230.0,107220.0,0.05688]
[1762163584276,0.03253264,107230.0,107220.0,0.5109652]
[1762163584676,0.03253264,107230.0,107220.0,0.41768]
[1762163585178,0.06923264,107230.0,107220.0,0.40421]
[1762163585572,0.18424593,107230.0,107220.0,0.40421]
[1762163585777,0.55204593,107230.0,107220.0,0.02168]
[1762163585980,0.55204593,107230.0,107220.0,0.04341]
[1762163586380,0.55504593,107230.0,107220.0,0.04341]
[1762163586571,0.19424593,107230.0,107220.0,0.04341]
[1762163587175,0.02253,107220.0,107210.0,0.3608]
[1762163587381,0.17424329,107220.0,107210.0,0.40421]
[1762163587674,0.05923,107220.0,107210.0,0.40421]
[1762163587882,0.18724593,107230.0,107220.0,0.04341]
[1762163588179,0.07223264,107230.0,107220.0,0.04341]
[1762163588380,0.07223264,107230.0,107220.0,0.5042252]
[1762163588680,0.07223264,107230.0,107220.0,0.41094]
[1762163588887,0.07223264,107230.0,107220.0,0.04341]
[1762163589068,0.18724593,107230.0,107220.0,0.04341]
[1762163589274,0.05923,107220.0,107210.0,0.40421]
[1762163589473,0.17424329,107220.0,107210.0,0.40421]
[1762163589873,0.05923,107220.0,107210.0,0.40421]
[1762163590076,0.17624329,107220.0,107210.0,0.40421]
[1762163590583,0.17424329,107220.0,107210.0,0.40421]
[1762163590781,0.17624329,107220.0,107210.0,0.40421]
[1762163591176,0.06623,107220.0,107210.0,0.40421]
[1762163591377,0.06823,107220.0,107210.0,0.40421]
[1762163592776,0.06923,107220.0,107210.0,0.40421]
[1762163593383,0.06823,107220.0,107210.0,0.40421]
[1762163596985,0.05458,107220.0,107210.0,0.41094]
[1762163597184,0.03153,107220.0,107210.0,0.41094]
[1762163597578,0.009,107220.0,107210.0,0.5042343]
[1762163597786,0.009,107220.0,107210.0,0.52595329]
[1762163597985,0.009,107220.0,107210.0,0.61924759]
[1762163598184,0.009,107220.0,107210.0,0.5042343]
[1762163598986,0.009,107220.0,107210.0,0.61924759]
[1762163599384,0.009,107220.0,107210.0,0.5042343]
[1762163600187,0.009,107220.0,107210.0,0.41094]
[1762163602087,0.06736,107220.0,107210.0,0.40421]
[1762163602391,0.12402178,107220.0,107210.0,0.50288178]
[1762163603085,0.15930178,107220.0,107210.0,0.50288178]
[1762163603385,0.12402178,107220.0,107210.0,0.50288178]
[1762163603584,0.14589178,107220.0,107210.0,0.50288178]
[1762163604090,0.12402178,107220.0,107210.0,0.50288178]
[1762163604889,0.15930178,107220.0,107210.0,0.50288178]
[1762163605090,0.15930178,107220.0,107210.0,0.49615178]
[1762163605293,0.15930178,107220.0,107210.0,0.40421]
[1762163605691,0.25124356,107220.0,107210.0,0.04341]
[1762163607691,0.05748,107210.0,107200.0,0.04267]
[1762163607886,0.51022178,107210.0,107200.0,0.04267]
[1762163608394,0.53327171,107210.0,107200.0,0.02122]
[1762163609194,0.53327171,107210.0,107200.0,0.04267]
[1762163609396,0.05748,107200.0,107190.0,0.40347]
[1762163609896,0.05748,107200.0,107190.0,0.3608]
[1762163610190,0.05748,107190.0,107180.0,0.04267]
[1762163610389,0.05748,107170.0,107160.0,0.4102]
[1762163610993,0.04443,107180.0,107170.0,0.05614]
[1762163611184,0.04443,107180.0,107170.0,0.41694]
[1762163611492,0.05748,107180.0,107170.0,0.41694]
[1762163612692,0.05748,107180.0,107170.0,0.05614]
[1762163612894,0.05748,107180.0,107170.0,0.40347]
[1762163613694,0.023,107180.0,107170.0,0.41694]
[1762163613993,0.05948,107180.0,107170.0,0.41694]
[1762163614590,0.05948,107180.0,107170.0,0.40347]
[1762163614795,0.05948,107180.0,107170.0,0.04267]
[1762163615693,0.03448,107170.0,107160.0,0.04267]
[1762163615995,0.05748,107170.0,107160.0,0.04267]
[1762163616191,0.023,107170.0,107160.0,0.4102]
[1762163616399,0.42028,107180.0,107170.0,0.04267]
[1762163616792,0.41828,107180.0,107170.0,0.04267]
[1762163617593,0.05748,107170.0,107160.0,0.40447]
[1762163617794,0.05748,107170.0,107160.0,0.40347]
[1762163618001,0.05748,107170.0,107160.0,0.04267]
[1762163619302,0.05748,107170.0,107160.0,0.04367]
[1762163619907,0.06548,107170.0,107160.0,0.04367]
[1762163620099,0.13944106,107170.0,107160.0,0.3618]
[1762163620302,0.54127171,107170.0,107160.0,0.001]
[1762163620502,0.18047171,107170.0,107160.0,0.04367]
[1762163621001,0.06548,107170.0,107160.0,0.04367]
[1762163621502,0.008,107170.0,107160.0,0.52457171]
[1762163621698,0.008,107170.0,107160.0,0.40958]
[1762163621896,0.0303,107170.0,107160.0,0.40958]
[1762163622097,0.008,107170.0,107160.0,0.40958]
[1762163622504,0.008,107170.0,107160.0,0.5029181]
[1762163623508,0.008,107170.0,107160.0,0.61790981]
[1762163623701,0.008,107170.0,107160.0,0.5029181]
[1762163626006,0.008,107170.0,107160.0,0.61790981]
[1762163626205,0.008,107170.0,107160.0,0.5029181]
[1762163626400,0.008,107170.0,107160.0,0.61790981]
[1762163626705,0.008,107170.0,107160.0,0.5029181]
[1762163627009,0.06661,107170.0,107160.0,0.40447]
[1762163627304,0.06661,107170.0,107160.0,0.40958]
[1762163627501,0.05281,107170.0,107160.0,0.40958]
[1762163628708,0.05281,107170.0,107160.0,0.5029179]
[1762163628913,0.008,107170.0,107160.0,0.59494285]
[1762163635108,0.05281,107170.0,107160.0,0.50160495]
[1762163636010,0.06661,107170.0,107160.0,0.49649495]
[1762163636313,0.06661,107170.0,107160.0,0.40447]
[1762163638315,0.07633916,107170.0,107160.0,0.40447]
[1762163640424,0.07633916,107170.0,107160.0,0.4978079]
[1762163640721,0.07633916,107170.0,107160.0,0.40447]
[1762163642416,0.07633916,107170.0,107160.0,0.502918]
[1762163642615,0.07633916,107170.0,107160.0,0.59494295]
[1762163642922,0.07633916,107170.0,107160.0,0.58983295]
[1762163643224,0.07633916,107170.0,107160.0,0.40447]
[1762163644723,0.16836411,107170.0,107160.0,0.40447]
[1762163645221,0.07633916,107170.0,107160.0,0.40447]
[1762163646822,0.07633916,107170.0,107160.0,0.4978079]
[1762163647927,0.07633916,107170.0,107160.0,0.40447]
[1762163649530,0.07633916,107170.0,107160.0,0.4978078]
[1762163650826,0.008,107170.0,107160.0,0.59494275]
[1762163653333,0.008,107170.0,107160.0,0.5029178]
[1762163653534,0.008,107170.0,107160.0,0.59494275]
[1762163654231,0.008,107170.0,107160.0,0.5029178]
[1762163654425,0.008,107170.0,107160.0,0.59494275]
[1762163657732,0.03045,107170.0,107160.0,0.50160495]
[1762163657938,0.05253,107170.0,107160.0,0.50160495]
[1762163658139,0.06626,107170.0,107160.0,0.50160495]
[1762163658340,0.06626,107170.0,107160.0,0.49649495]
[1762163658541,0.06626,107170.0,107160.0,0.40447]
[1762163662036,0.05253,107170.0,107160.0,0.4112]
[1762163662235,0.06626,107170.0,107160.0,0.4112]
[1762163662437,0.06626,107170.0,107160.0,0.40447]
[1762163662839,0.008,107170.0,107160.0,0.59656315]
[1762163666244,0.008,107170.0,107160.0,0.5045382]
[1762163666444,0.008,107170.0,107160.0,0.59656315]
[1762163668146,0.008,107170.0,107160.0,0.5045382]
[1762163668446,0.008,107170.0,107160.0,0.59656315]
[1762163668739,0.01008815,107180.0,107170.0,0.0933293]
[1762163668946,0.05636,107190.0,107180.0,0.04512]
[1762163669145,0.05636,107190.0,107180.0,0.40592]
[1762163669644,0.00982796,107190.0,107180.0,0.59799555]
[1762163669843,0.02213,107190.0,107180.0,0.59799555]
[1762163670045,0.02413,107190.0,107180.0,0.50467495]
[1762163670544,0.02413,107190.0,107180.0,0.59799555]
[1762163670746,0.01184621,107190.0,107180.0,0.59799555]
[1762163671245,0.002,107190.0,107180.0,0.59799555]
[1762163671943,0.013,107190.0,107180.0,0.59799555]
[1762163675145,0.00996153,107200.0,107190.0,0.093312]
[1762163675352,0.01373,107210.0,107200.0,0.02208]
[1762163675353,0.05704,107210.0,107200.0,0.02208]
[1762163675650,0.05704,107210.0,107200.0,0.38288]
[1762163675850,0.05704,107210.0,107200.0,0.4761833]
[1762163676150,0.02213,107210.0,107200.0,0.56820825]
[1762163676338,0.13230207,107220.0,107210.0,0.02208]
[1762163676541,0.05704,107220.0,107210.0,0.02208]
[1762163676745,0.15900553,107220.0,107210.0,0.02208]
[1762163677644,0.15900553,107220.0,107210.0,0.4761745]
[1762163677645,0.06698058,107220.0,107210.0,0.4761745]
[1762163677849,0.06698058,107220.0,107210.0,0.42688]
[1762163678161,0.06698058,107220.0,107210.0,0.61219945]
[1762163678353,0.06798058,107220.0,107210.0,0.63319945]
[1762163678854,0.06798058,107220.0,107210.0,0.53990495]
[1762163679058,0.06798058,107220.0,107210.0,0.44788]
[1762163680254,0.16000553,107220.0,107210.0,0.44788]
[1762163680758,0.16000553,107220.0,107210.0,0.08708]
[1762163682259,0.06798058,107220.0,107210.0,0.08708]
[1762163682453,0.06798058,107220.0,107210.0,0.44788]
[1762163682658,0.06798058,107220.0,107210.0,0.08708]
[1762163682854,0.06798058,107220.0,107210.0,0.44788]
[1762163683053,0.06798058,107220.0,107210.0,0.08708]
[1762163683253,0.07598058,107220.0,107210.0,0.04308]
[1762163684147,0.07398058,107220.0,107210.0,0.04308]
[1762163684352,0.07298058,107220.0,107210.0,0.02208]
[1762163684760,0.16500553,107220.0,107210.0,0.02208]
[1762163687158,0.07298058,107220.0,107210.0,0.02208]
[1762163687460,0.16500553,107220.0,107210.0,0.02208]
[1762163688455,0.2568979,107220.0,107210.0,0.02208]
[1762163688649,0.0583,107210.0,107200.0,0.38288]
[1762163688855,0.15025866,107210.0,107200.0,0.3608]
[1762163689053,0.0583,107200.0,107190.0,0.47483866]
[1762163689258,0.51105866,107200.0,107190.0,0.02208]
[1762163689457,0.15025866,107200.0,107190.0,0.02208]
[1762163689657,0.15025866,107200.0,107190.0,0.11403866]
[1762163691563,0.15025866,107200.0,107190.0,0.47483866]
[1762163691863,0.0583,107200.0,107190.0,0.47483866]
[1762163693065,0.0583,107210.0,107200.0,0.02208]
[1762163693266,0.0583,107210.0,107200.0,0.56679732]
[1762163693764,0.0583,107210.0,107200.0,0.66010062]
[1762163694161,0.0583,107210.0,107200.0,0.77747209]
[1762163694561,0.15025866,107210.0,107200.0,0.65927719]
[1762163694964,0.15025866,107210.0,107200.0,0.54190572]
[1762163695473,0.15025866,107210.0,107200.0,0.07810706]
[1762163695667,0.15025866,107210.0,107200.0,0.08914706]
[1762163696762,0.15025866,107210.0,107200.0,0.06706706]
[1762163696967,0.15025866,107210.0,107200.0,0.08914706]
[1762163697177,0.15025866,107210.0,107200.0,0.44994706]
[1762163697370,0.15025866,107210.0,107200.0,0.08914706]
[1762163697570,0.15025866,107210.0,107200.0,0.44994706]
[1762163700277,0.0583,107210.0,107200.0,0.44994706]
[1762163700476,0.15025866,107210.0,107200.0,0.38288]
[1762163700779,0.15025866,107210.0,107200.0,0.13945147]
[1762163701075,0.4191,107210.0,107200.0,0.201262]
[1762163701278,0.51105866,107210.0,107200.0,0.201262]
[1762163701574,0.51105866,107210.0,107200.0,0.08389053]
[1762163702477,0.51105866,107210.0,107200.0,0.10597053]
[1762163702777,0.51105866,107210.0,107200.0,0.08389053]
[1762163703676,0.0583,107200.0,107190.0,0.13945147]
[1762163703879,0.15025866,107200.0,107190.0,0.02208]
[1762163704573,0.15025866,107200.0,107190.0,0.50037288]
[1762163705073,0.24221732,107200.0,107190.0,0.20141614]
[1762163705269,0.60301732,107200.0,107180.0,0.20141614]
[1762163705577,0.51105866,107190.0,107180.0,0.12853288]
[1762163705780,0.0583,107180.0,107170.0,0.13957288]
[1762163705971,0.15025866,107180.0,107170.0,0.13957288]
[1762163706172,0.0583,107170.0,107160.0,0.6425122]
[1762163706480,0.1445905,107170.0,107160.0,0.6425122]
[1762163706680,0.05263184,107170.0,107160.0,0.6553322]
[1762163707177,0.13707866,107170.0,107160.0,0.48765866]
[1762163707479,0.13707866,107170.0,107160.0,0.49065866]
[1762163707679,0.04512,107170.0,107160.0,0.49065866]
[1762163707884,0.04512,107170.0,107160.0,0.48765866]
[1762163708277,0.04512,107170.0,107160.0,0.51317896]
[1762163708479,0.04512,107170.0,107160.0,0.60513762]
[1762163708979,0.13707866,107170.0,107160.0,0.60513762]
[1762163709182,0.05112,107170.0,107160.0,0.60513762]
[1762163710487,0.05112,107170.0,107160.0,0.68901746]
[1762163710786,0.0610196,107170.0,107160.0,0.5715385]
[1762163711083,0.0610196,107170.0,107160.0,0.664877]
[1762163711386,0.0610196,107170.0,107160.0,0.47957984]
[1762163711578,0.0610196,107170.0,107160.0,0.5715385]
[1762163711978,0.0610196,107170.0,107160.0,0.664877]
[1762163712182,0.0610196,107170.0,107160.0,0.67295582]
[1762163712386,0.0610196,107170.0,107160.0,0.66344189]
[1762163712984,0.0610196,107170.0,107160.0,0.57148323]
[1762163713487,0.05112,107170.0,107160.0,0.66482173]
[1762163713689,0.02794,107170.0,107160.0,0.75678039]
[1762163713876,0.05032,107170.0,107160.0,0.75678039]
[1762163714080,0.05032,107170.0,107160.0,0.66344189]
[1762163714280,0.05032,107170.0,107160.0,0.75678039]
[1762163714682,0.05032,107170.0,107160.0,0.69709628]
[1762163714987,0.05032,107170.0,107160.0,0.79043478]
[1762163716589,0.05032,107170.0,107160.0,0.69709628]
[1762163718193,0.16594557,107170.0,107160.0,0.60513762]
[1762163718785,0.07398691,107170.0,107160.0,0.60513762]
[1762163719094,0.16594557,107170.0,107160.0,0.60513762]
[1762163719583,0.16594557,107170.0,107160.0,0.23151762]
[1762163719785,0.52674557,107170.0,107160.0,0.19776335]
[1762163720186,0.43478691,107170.0,107160.0,0.02208]
[1762163720386,0.52674557,107170.0,107160.0,0.11403866]
[1762163720586,0.16594557,107170.0,107160.0,0.02208]
[1762163720890,0.16594557,107170.0,107160.0,0.11403866]
[1762163721691,0.16594557,107170.0,107160.0,0.02208]
[1762163721994,0.16594557,107170.0,107160.0,0.1057827]
[1762163722195,0.16594557,107170.0,107160.0,0.02208]
[1762163723095,0.16594557,107170.0,107160.0,0.13955896]
[1762163723287,0.16594557,107170.0,107160.0,0.51428896]
[1762163723487,0.16594557,107170.0,107160.0,0.60624762]
[1762163724189,0.16594557,107170.0,107160.0,0.22326066]
[1762163724495,0.07398691,107170.0,107160.0,0.22326812]
[1762163724694,0.16594557,107170.0,107160.0,0.10578916]
[1762163725196,0.16594557,107170.0,107160.0,0.57168782]
[1762163725386,0.16594557,107170.0,107160.0,0.48797866]
[1762163725891,0.15199557,107170.0,107160.0,0.58131716]
[1762163726087,0.06003691,107170.0,107160.0,0.58131716]
[1762163726990,0.05803691,107170.0,107160.0,0.58131716]
[1762163727589,0.05503691,107170.0,107160.0,0.58131716]
[1762163727789,0.05903691,107170.0,107160.0,0.58131716]
[1762163728192,0.05903691,107170.0,107160.0,0.39602]
[1762163728391,0.05903691,107170.0,107160.0,0.48797866]
[1762163729491,0.05903691,107170.0,107160.0,0.58131716]
[1762163729690,0.05903691,107170.0,107160.0,0.39602]
[1762163730001,0.15099557,107170.0,107160.0,0.48797866]
[1762163730799,0.15099557,107170.0,107160.0,0.58131716]
[1762163731101,0.05903691,107170.0,107160.0,0.58131716]
[1762163731497,0.15099557,107170.0,107160.0,0.58131716]
[1762163731703,0.15099557,107170.0,107160.0,0.48797866]
[1762163732103,0.15099557,107170.0,107160.0,0.58131706]
[1762163732399,0.16392557,107170.0,107160.0,0.38288]
[1762163732605,0.16392557,107170.0,107160.0,0.02208]
[1762163733299,0.05679,107160.0,107150.0,0.40568]
[1762163733501,0.13581866,107160.0,107150.0,0.51026866]
[1762163734301,0.13581866,107160.0,107150.0,0.41831]
[1762163734697,0.13681866,107160.0,107150.0,0.51026866]
[1762163735104,0.14974866,107160.0,107150.0,0.40568]
[1762163735400,0.13681866,107160.0,107150.0,0.41831]
[1762163735594,0.13681866,107160.0,107150.0,0.51026866]
[1762163736206,0.14974866,107160.0,107150.0,0.40568]
[1762163736408,0.14974866,107160.0,107150.0,0.41831]
[1762163736704,0.14974866,107160.0,107150.0,0.40568]
[1762163736906,0.14974866,107160.0,107150.0,0.41831]
[1762163737206,0.04486,107160.0,107150.0,0.51026866]
[1762163737507,0.13681866,107160.0,107150.0,0.51026866]
[1762163737805,0.14974866,107160.0,107150.0,0.51026866]
[1762163738209,0.14974866,107160.0,107150.0,0.41831]
[1762163738395,0.14974866,107160.0,107150.0,0.51026866]
[1762163739108,0.13681866,107160.0,107150.0,0.51026866]
[1762163740312,0.13681866,107160.0,107150.0,0.57724386]
[1762163740711,0.04486,107160.0,107150.0,0.57724386]
[1762163741010,0.04486,107160.0,107150.0,0.67059116]
[1762163741316,0.001,107160.0,107150.0,0.30979116]
[1762163741708,0.001,107160.0,107150.0,0.67059116]
[1762163742012,0.001,107160.0,107150.0,0.76254982]
[1762163742210,0.001,107160.0,107150.0,0.67059116]
[1762163743306,0.001,107160.0,107150.0,0.60361596]
[1762163745915,0.001,107160.0,107150.0,0.67059116]
[1762163746109,0.001,107160.0,107150.0,0.76254982]
[1762163747714,0.001,107160.0,107150.0,0.69557462]
[1762163748116,0.04394,107160.0,107150.0,0.60361596]
[1762163748411,0.001,107160.0,107150.0,0.60361596]
[1762163749311,0.001,107160.0,107150.0,0.76275904]
[1762163749618,0.001,107160.0,107150.0,0.67080038]
[1762163749918,0.001,107160.0,107150.0,0.76275904]
[1762163750415,0.001,107160.0,107150.0,0.67086329]
[1762163751413,0.001,107160.0,107150.0,0.57751599]
[1762163751717,0.04394,107160.0,107150.0,0.57751599]
[1762163753716,0.04394,107160.0,107150.0,0.67086309]
[1762163754519,0.02267,107160.0,107150.0,0.67086309]
[1762163754719,0.04394,107160.0,107150.0,0.67086309]
[1762163756111,0.001,107160.0,107150.0,0.67086309]
[1762163756311,0.02267,107160.0,107150.0,0.67086309]
[1762163756713,0.001,107160.0,107150.0,0.67086309]
[1762163758717,0.001,107160.0,107150.0,0.60367867]
[1762163758917,0.001,107160.0,107150.0,0.67086309]
[1762163759520,0.001,107160.0,107150.0,0.60367867]
[1762163760722,0.02267,107160.0,107150.0,0.60367867]
[1762163760921,0.001,107160.0,107150.0,0.60367867]
[1762163761420,0.04394,107160.0,107150.0,0.60367867]
[1762163761913,0.001,107160.0,107150.0,0.5116571]
[1762163762108,0.3988414,107190.0,107180.0,0.0566]
[1762163762109,0.4417814,107190.0,107180.0,0.0566]
[1762163762313,0.11400754,107190.0,107180.0,0.14862157]
[1762163762515,0.07596614,107190.0,107180.0,0.14862157]
[1762163762713,0.05469614,107190.0,107180.0,0.50942157]
[1762163762914,0.07596614,107190.0,107180.0,0.50942157]
[1762163763219,0.07596614,107190.0,107180.0,0.60274257]
[1762163763421,0.07696614,107190.0,107180.0,0.60274257]
[1762163763620,0.07696614,107190.0,107180.0,0.50942157]
[1762163764012,0.07596614,107190.0,107180.0,0.60274257]
[1762163764213,0.07696614,107190.0,107180.0,0.50942157]
[1762163764435,0.05379649,107190.0,107180.0,0.50942157]
[1762163764815,0.05879649,107190.0,107180.0,0.50942157]
[1762163765314,0.07183649,107190.0,107180.0,0.50942157]
[1762163765510,0.06683649,107190.0,107180.0,0.50942157]
[1762163765714,0.05679649,107190.0,107180.0,0.50942157]
[1762163766021,0.05679649,107190.0,107180.0,0.4174]
[1762163766728,0.01385649,107190.0,107180.0,0.60274257]
[1762163767115,0.004,107190.0,107180.0,0.60274257]
[1762163768226,0.001,107190.0,107180.0,0.60274257]
[1762163768623,0.05251038,107200.0,107190.0,0.05481]
[1762163768922,0.05251038,107200.0,107190.0,0.50763157]
[1762163769920,0.05351038,107200.0,107190.0,0.50763157]
[1762163770124,0.01057038,107200.0,107190.0,0.50763157]
[1762163770423,0.001,107200.0,107190.0,0.60094387]
[1762163770927,0.004,107200.0,107190.0,0.60094387]
[1762163772424,0.004,107200.0,107190.0,0.69296544]
[1762163772626,0.00984585,107210.0,107200.0,0.05435]
[1762163772823,0.56791233,107230.0,107220.0,0.04572]
[1762163773124,0.59104126,107230.0,107220.0,0.04572]
[1762163773425,0.66538611,107230.0,107220.0,0.04572]
[1762163774227,0.63227675,107230.0,107220.0,0.04572]
[1762163774430,0.66538611,107230.0,107220.0,0.04572]
[1762163774728,0.66538611,107230.0,107220.0,0.06472]
[1762163774932,0.66538611,107230.0,107220.0,0.07372]
[1762163776332,0.6749474,107230.0,107220.0,0.07372]
[1762163777126,0.58292583,107230.0,107220.0,0.07372]
[1762163777331,0.22212583,107230.0,107220.0,0.07372]
[1762163777531,0.07677022,107230.0,107220.0,0.08492]
[1762163777728,0.05364129,107230.0,107220.0,0.08492]
[1762163777930,0.06657129,107230.0,107220.0,0.08492]
[1762163778632,0.15859286,107230.0,107220.0,0.07372]
[1762163778833,0.51939286,107230.0,107220.0,0.07372]
[1762163779730,0.42737129,107230.0,107220.0,0.05084]
[1762163780027,0.51939286,107230.0,107220.0,0.07372]
[1762163780221,0.42737129,107230.0,107220.0,0.07372]
[1762163780424,0.51939286,107230.0,107220.0,0.07372]
[1762163781434,0.15859286,107230.0,107220.0,0.07372]
[1762163783436,0.06657129,107230.0,107220.0,0.07372]
[1762163784134,0.06657129,107230.0,107220.0,0.43452]
[1762163785033,0.06657129,107230.0,107220.0,0.44778]
[1762163785835,0.05364129,107230.0,107220.0,0.53980157]
[1762163786032,0.03183129,107230.0,107220.0,0.53980157]
[1762163786236,0.00956129,107230.0,107220.0,0.53980157]
[1762163786431,0.02227,107230.0,107220.0,0.63308777]
[1762163786639,0.03184179,107230.0,107220.0,0.63308777]
[1762163787138,0.41993,107250.0,107240.0,0.05503]
[1762163787437,0.44298263,107250.0,107240.0,0.04406]
[1762163788337,0.08218263,107250.0,107240.0,0.49688157]
[1762163788533,0.08218263,107250.0,107240.0,0.4317]
[1762163788929,0.06914263,107250.0,107240.0,0.4317]
[1762163789240,0.06914263,107250.0,107240.0,0.50272157]
[1762163789539,0.06914263,107250.0,107240.0,0.54672157]
[1762163789838,0.09224643,107250.0,107240.0,0.54672157]
[1762163790038,0.09224643,107250.0,107240.0,0.44886]
[1762163790340,0.09324643,107250.0,107240.0,0.40486]
[1762163790938,0.185268,107250.0,107240.0,0.40486]
[1762163791139,0.185268,107250.0,107240.0,0.04406]
[1762163791337,0.621861,107250.0,107240.0,0.04406]
[1762163791532,0.621861,107250.0,107240.0,0.0221]
[1762163792040,0.621861,107250.0,107240.0,0.04406]
[1762163792540,0.0564,107240.0,107230.0,0.40486]
[1762163792842,0.07945263,107240.0,107230.0,0.04406]
[1762163793039,0.1714742,107240.0,107230.0,0.04406]
[1762163793245,0.0564,107230.0,107220.0,0.40486]
[1762163793440,0.4172,107230.0,107220.0,0.04406]
[1762163793634,0.50922157,107230.0,107220.0,0.04406]
[1762163794342,0.53227936,107230.0,107220.0,0.04406]
[1762163794644,0.53227936,107230.0,107210.0,0.04406]
[1762163794645,0.0564,107220.0,107210.0,0.04406]
[1762163794835,0.44025725,107220.0,107210.0,0.04406]
[1762163795342,0.07945725,107220.0,107210.0,0.04406]
[1762163795534,0.07945725,107220.0,107210.0,0.05376]
[1762163796345,0.07945725,107220.0,107210.0,0.05782]
[1762163796643,0.07945725,107220.0,107210.0,0.04406]
[1762163796644,0.08045725,107220.0,107210.0,0.04406]
[1762163798443,0.08045725,107220.0,107210.0,0.40486]
[1762163799349,0.08045725,107220.0,107210.0,0.41456]
[1762163799943,0.0345,107210.0,107200.0,0.04406]
[1762163800148,0.07948174,107210.0,107200.0,0.04406]
[1762163800344,0.17150331,107210.0,107200.0,0.04406]
[1762163800542,0.17150782,107210.0,107200.0,0.04406]
[1762163800841,0.07948625,107210.0,107200.0,0.04406]
[1762163801639,0.07948625,107210.0,107200.0,0.41877]
[1762163801839,0.08048625,107210.0,107200.0,0.41877]
[1762163804246,0.09037594,107210.0,107200.0,0.41877]
[1762163804446,0.06728969,107210.0,107200.0,0.41877]
[1762163806240,0.06728969,107210.0,107200.0,0.51079157]
[1762163807652,0.05397969,107210.0,107200.0,0.51079157]
[1762163809248,0.00988969,107210.0,107200.0,0.60409527]
[1762163809450,0.001,107210.0,107200.0,0.60409527]
[1762163810147,0.02429,107210.0,107200.0,0.60409527]
[1762163811351,0.03382966,107210.0,107200.0,0.60409527]
[1762163811540,0.01053966,107210.0,107200.0,0.60409527]
[1762163811741,0.001,107210.0,107200.0,0.60409527]
[1762163811946,0.04598,107240.0,107230.0,0.05076]
[1762163812141,0.06910116,107240.0,107230.0,0.14278157]
[1762163812346,0.04598,107240.0,107230.0,0.14265578]
[1762163812542,0.07858221,107240.0,107230.0,0.50345578]
[1762163812748,0.1610785,107240.0,107230.0,0.13495578]
[1762163814849,0.18424623,107240.0,107230.0,0.13495578]
[1762163815049,0.18424623,107240.0,107230.0,0.04306]
[1762163815251,0.1610785,107240.0,107230.0,0.04306]
[1762163816647,0.25297428,107240.0,107230.0,0.04306]
[1762163816848,0.27613735,107240.0,107230.0,0.04306]